[Event "SS Manhem Chess Week 2019 Goteborg Open"]
[Site "Molnlycke kulturhus, Biblioteksgatan 2, Molnlycke, Sweden"]
[Date "2019.08.16"]
[Round "1.16"]
[White "Andersson, Christian"]
[Black "Carlsson, Ludvig"]
[Result "0-1"]
[TimeControl "15 minutes + 5 seconds per move from move one (Round 1 - 4) / 90 minutes + 30 seconds per move from move one (Round 5 - 8)"]
[BlackTitle "CM"]
[WhiteFideId "1724789"]
[BlackFideId "1727010"]
[WhiteElo "1794"]
[BlackElo "2234"]

1. e4 {[%clk 00:15:08]} {[%emt 00:00:02]} c5 {[%clk 00:15:09]} {[%emt
00:00:02]} 2. b3 {[%clk 00:15:11]} {[%emt 00:00:02]} Nc6 {[%clk 00:15:08]}
{[%emt 00:00:05]} 3. Bb2 {[%clk 00:15:15]} {[%emt 00:00:02]} e5 {[%clk
00:15:11]} {[%emt 00:00:02]} 4. Bc4 {[%clk 00:15:18]} {[%emt 00:00:02]} d6
{[%clk 00:15:09]} {[%emt 00:00:07]} 5. Nc3 {[%clk 00:15:16]} {[%emt 00:00:06]}
Nf6 {[%clk 00:14:40]} {[%emt 00:00:34]} 6. d3 {[%clk 00:15:14]} {[%emt
00:00:07]} Be7 {[%clk 00:14:33]} {[%emt 00:00:12]} 7. Nge2 {[%clk 00:15:13]}
{[%emt 00:00:05]} O-O {[%clk 00:14:32]} {[%emt 00:00:06]} 8. O-O {[%clk
00:15:13]} {[%emt 00:00:05]} Kh8 {[%clk 00:14:17]} {[%emt 00:00:20]} 9. f4
{[%clk 00:15:02]} {[%emt 00:00:16]} Ng4 {[%clk 00:14:00]} {[%emt 00:00:22]} 10.
Qd2 {[%clk 00:14:41]} {[%emt 00:00:26]} exf4 {[%clk 00:13:53]} {[%emt
00:00:12]} 11. Nxf4 {[%clk 00:14:15]} {[%emt 00:00:31]} Bf6 {[%clk 00:13:52]}
{[%emt 00:00:06]} 12. h3 {[%clk 00:13:57]} {[%emt 00:00:23]} Bd4+ {[%clk
00:13:52]} {[%emt 00:00:04]} 13. Kh1 {[%clk 00:13:52]} {[%emt 00:00:11]} Qh4
{[%clk 00:13:26]} {[%emt 00:00:31]} 14. Rf3 {[%clk 00:10:06]} {[%emt 00:03:51]}
Nce5 {[%clk 00:13:13]} {[%emt 00:00:18]} 15. Raf1 {[%emt 00:00:31]} Nxf3 {[%clk
00:12:44]} {[%emt 00:00:11]} 16. Rxf3 {[%clk 00:10:07]} {[%emt 00:00:01]} Ne3
{[%clk 00:11:10]} {[%emt 00:01:39]} 17. Nfe2 {[%clk 00:09:36]} {[%emt
00:00:36]} Bg4 {[%clk 00:10:49]} {[%emt 00:00:26]} 18. Rxe3 {[%clk 00:08:15]}
{[%emt 00:01:26]} Qf2 {[%emt 00:02:28]} 19. Nd1 {[%emt 00:00:10]} Qf1+ {[%clk
00:08:12]} {[%emt 00:00:41]} 20. Ng1 {[%clk 00:06:37]} {[%emt 00:01:15]} Qxd1
{[%clk 00:08:07]} {[%emt 00:00:10]} 21. Qxd1 {[%clk 00:06:35]} {[%emt
00:00:07]} Bxd1 {[%emt 00:00:10]} 22. Bxd4 {[%clk 00:06:27]} {[%emt 00:00:05]}
cxd4 {[%clk 00:08:13]} {[%emt 00:00:01]} 23. Re1 {[%clk 00:06:18]} {[%emt
00:00:15]} Bxc2 {[%clk 00:07:21]} {[%emt 00:00:58]} 24. Ne2 {[%clk 00:05:56]}
{[%emt 00:00:26]} a6 {[%clk 00:06:58]} {[%emt 00:00:28]} 25. a4 {[%clk
00:06:00]} {[%emt 00:00:01]} b5 {[%clk 00:06:56]} {[%emt 00:00:06]} 26. Bd5
{[%clk 00:05:37]} {[%emt 00:00:29]} Rac8 {[%clk 00:06:36]} {[%emt 00:00:24]} 27.
axb5 {[%clk 00:05:31]} {[%emt 00:00:12]} Bxd3 {[%clk 00:05:52]} {[%emt
00:00:49]} 28. bxa6 {[%clk 00:05:14]} {[%emt 00:00:23]} Bxa6 {[%clk 00:05:45]}
{[%emt 00:00:12]} 29. Nxd4 {[%clk 00:05:13]} {[%emt 00:00:05]} g6 {[%clk
00:05:27]} {[%emt 00:00:23]} 30. Rb1 {[%clk 00:04:13]} {[%emt 00:01:05]} f5
{[%clk 00:04:32]} {[%emt 00:00:59]} 31. exf5 {[%clk 00:03:19]} {[%emt
00:00:59]} gxf5 {[%clk 00:04:05]} {[%emt 00:00:33]} 32. b4 {[%clk 00:03:00]}
{[%emt 00:00:25]} Bd3 {[%clk 00:04:06]} {[%emt 00:00:04]} 33. Rb2 {[%clk
00:02:50]} {[%emt 00:00:15]} Be4 {[%clk 00:04:01]} {[%emt 00:00:09]} 34. Be6
{[%clk 00:02:40]} {[%emt 00:00:15]} Rc1+ {[%clk 00:03:45]} {[%emt 00:00:21]} 35.
Kh2 {[%clk 00:02:44]} {[%emt 00:00:01]} Rd1 {[%clk 00:03:24]} {[%emt 00:00:26]}
36. Ne2 {[%clk 00:02:01]} {[%emt 00:00:48]} Rb8 {[%clk 00:03:12]} {[%emt
00:00:16]} 37. b5 {[%clk 00:01:45]} {[%emt 00:00:21]} Rb6 {[%clk 00:03:16]}
{[%emt 00:00:01]} 38. Bd7 {[%clk 00:01:44]} {[%emt 00:00:06]} d5 {[%clk
00:03:06]} {[%emt 00:00:15]} 39. Nc3 {[%clk 00:01:35]} {[%emt 00:00:14]} Ra1
{[%clk 00:03:10]} {[%emt 00:00:01]} 40. Bc6 {[%clk 00:01:21]} {[%emt 00:00:20]}
Rc1 {[%clk 00:02:40]} {[%emt 00:00:35]} 41. Nxd5 {[%clk 00:00:55]} {[%emt
00:00:30]} Rcxc6 {[%clk 00:02:28]} {[%emt 00:00:16]} 42. Nxb6 {[%clk 00:00:42]}
{[%emt 00:00:19]} Rxb6 {[%clk 00:02:32]} {[%emt 00:00:01]} 43. Kg3 {[%emt
00:00:06]} Bd3 {[%clk 00:02:15]} {[%emt 00:00:20]} 44. Kf4 {[%clk 00:00:47]}
Rxb5 {[%clk 00:02:10]} {[%emt 00:00:10]} 45. Rxb5 {[%clk 00:00:51]} {[%emt
00:00:01]} Bxb5 {[%clk 00:02:14]} {[%emt 00:00:01]} 46. Kxf5 {[%clk 00:00:55]}
Bf1 {[%clk 00:02:13]} {[%emt 00:00:05]} 47. Kg4 {[%clk 00:00:53]} {[%emt
00:00:06]} Bxg2 {[%clk 00:02:16]} {[%emt 00:00:02]} 48. Kg3 {[%clk 00:00:58]}
{[%emt 00:00:01]} Bc6 {[%clk 00:02:19]} {[%emt 00:00:02]} 49. h4 {[%clk
00:01:01]} {[%emt 00:00:02]} Kg7 {[%clk 00:02:21]} {[%emt 00:00:03]} 50. Kf4
{[%clk 00:01:00]} {[%emt 00:00:06]} Kf6 {[%clk 00:02:24]} {[%emt 00:00:02]} 51.
Kg4 {[%clk 00:01:02]} {[%emt 00:00:03]} Kg6 {[%clk 00:02:25]} {[%emt 00:00:03]}
52. Kg3 {[%clk 00:01:01]} {[%emt 00:00:06]} Kh5 {[%clk 00:02:29]} 0-1

[Event "SS Manhem Chess Week 2019 Goteborg Open"]
[Site "Molnlycke kulturhus, Biblioteksgatan 2, Molnlycke, Sweden"]
[Date "2019.08.16"]
[Round "1.17"]
[White "Castrillon Gomez, Melissa"]
[Black "Dale, Svein"]
[Result "1-0"]
[TimeControl "15 minutes + 5 seconds per move from move one (Round 1 - 4) / 90 minutes + 30 seconds per move from move one (Round 5 - 8)"]
[WhiteTitle "WIM"]
[WhiteFideId "4402413"]
[BlackFideId "1523120"]
[WhiteElo "2227"]
[BlackElo "1772"]

1. Nf3 {[%clk 01:30:07]} d5 {[%clk 01:30:49]} 2. d4 {[%clk 01:30:07]} Nf6
{[%clk 01:30:49]} 3. c4 {[%clk 01:30:07]} g6 {[%clk 01:30:49]} 4. cxd5 {[%clk
01:30:07]} Bg7 {[%clk 00:14:48]} {[%emt 08:31:23]} 5. g3 {[%clk 00:14:31]} O-O
{[%clk 00:14:48]} {[%emt 00:00:46]} 6. Bg2 {[%clk 00:14:35]} Qxd5 {[%clk
00:14:31]} {[%emt 00:00:25]} 7. O-O {[%clk 00:14:26]} Bg4 {[%clk 00:13:52]}
{[%emt 00:00:59]} 8. Ne5 {[%clk 00:13:45]} Qb5 {[%clk 00:13:46]} {[%emt
00:00:56]} 9. Nc3 {[%clk 00:13:39]} Qa6 {[%clk 00:13:33]} {[%emt 00:00:29]} 10.
Nxg4 {[%clk 00:13:15]} Nxg4 {[%clk 00:13:36]} {[%emt 00:00:31]} 11. Nd5 {[%clk
00:13:04]} Qd6 {[%clk 00:12:20]} {[%emt 00:01:37]} 12. h3 {[%clk 00:12:49]} Nh6
{[%clk 00:12:11]} {[%emt 00:00:34]} 13. Bf4 {[%clk 00:12:43]} e5 {[%clk
00:11:59]} {[%emt 00:00:28]} 14. dxe5 {[%clk 00:12:40]} Bxe5 {[%clk 00:12:01]}
{[%emt 00:00:12]} 15. Bxh6 {[%clk 00:12:36]} 1-0

[Event "SS Manhem Chess Week 2019 Goteborg Open"]
[Site "Molnlycke kulturhus, Biblioteksgatan 2, Molnlycke, Sweden"]
[Date "2019.08.16"]
[Round "1.18"]
[White "Oxelqvist, Martin"]
[Black "Johnson, Daniel"]
[Result "0-1"]
[TimeControl "15 minutes + 5 seconds per move from move one (Round 1 - 4) / 90 minutes + 30 seconds per move from move one (Round 5 - 8)"]
[WhiteFideId "1718061"]
[BlackFideId "1721283"]
[WhiteElo "1759"]
[BlackElo "2201"]

1. Nf3 {[%clk 00:15:05]} {[%emt 00:22:11]} d5 {[%clk 00:15:05]} {[%emt
00:00:06]} 2. g3 {[%clk 00:14:45]} {[%emt 00:00:25]} Nf6 {[%clk 00:15:05]}
{[%emt 00:00:05]} 3. Bg2 {[%clk 00:14:48]} {[%emt 00:00:03]} e6 {[%clk
00:15:08]} {[%emt 00:00:02]} 4. O-O {[%clk 00:14:50]} {[%emt 00:00:03]} Be7
{[%clk 00:15:11]} {[%emt 00:00:01]} 5. d3 {[%clk 00:14:50]} {[%emt 00:00:05]}
O-O {[%clk 00:15:09]} {[%emt 00:00:07]} 6. Nbd2 {[%clk 00:14:52]} {[%emt
00:00:04]} c5 {[%clk 00:14:53]} {[%emt 00:00:20]} 7. e4 {[%clk 00:14:44]}
{[%emt 00:00:14]} Nc6 {[%clk 00:14:55]} {[%emt 00:00:03]} 8. c3 {[%clk
00:13:57]} {[%emt 00:00:52]} Qc7 {[%clk 00:14:27]} {[%emt 00:00:33]} 9. Qc2
{[%clk 00:13:30]} {[%emt 00:00:32]} b5 {[%clk 00:13:11]} {[%emt 00:01:21]} 10.
Re1 {[%clk 00:12:47]} {[%emt 00:00:48]} Bb7 {[%clk 00:12:55]} {[%emt 00:00:20]}
11. Nf1 {[%clk 00:12:07]} {[%emt 00:00:45]} a5 {[%clk 00:11:47]} {[%emt
00:01:14]} 12. h4 {[%clk 00:11:30]} {[%emt 00:00:42]} Rac8 {[%clk 00:11:16]}
{[%emt 00:00:36]} 13. e5 {[%clk 00:10:57]} {[%emt 00:00:38]} Nd7 {[%clk
00:11:12]} {[%emt 00:00:08]} 14. Bf4 {[%clk 00:10:44]} {[%emt 00:00:18]} b4
{[%clk 00:10:50]} {[%emt 00:00:27]} 15. N1h2 {[%clk 00:10:26]} {[%emt
00:00:23]} Rfe8 {[%clk 00:10:47]} {[%emt 00:00:08]} 16. h5 {[%clk 00:10:07]}
{[%emt 00:00:25]} Qb6 {[%clk 00:07:48]} {[%emt 00:03:04]} 17. Ng4 {[%clk
00:09:44]} {[%emt 00:00:28]} c4 {[%clk 00:06:41]} {[%emt 00:01:12]} 18. dxc4
{[%clk 00:08:18]} {[%emt 00:01:31]} dxc4 {[%clk 00:06:37]} {[%emt 00:00:09]} 19.
Rad1 {[%clk 00:08:12]} {[%emt 00:00:11]} Nc5 {[%clk 00:06:21]} {[%emt
00:00:20]} 20. Be3 {[%clk 00:07:41]} {[%emt 00:00:37]} Qc7 {[%clk 00:05:42]}
{[%emt 00:00:43]} 21. Bxc5 {[%clk 00:07:12]} {[%emt 00:00:34]} Bxc5 {[%clk
00:05:45]} {[%emt 00:00:03]} 22. Qe2 {[%clk 00:06:42]} {[%emt 00:00:35]} h6
{[%clk 00:03:20]} {[%emt 00:02:29]} 23. Nd2 {[%clk 00:05:48]} {[%emt 00:00:59]}
bxc3 {[%clk 00:03:07]} {[%emt 00:00:19]} 24. bxc3 {[%clk 00:05:48]} {[%emt
00:00:05]} Ne7 {[%clk 00:01:36]} {[%emt 00:01:35]} 25. Ne4 {[%clk 00:04:51]}
{[%emt 00:01:02]} Bxe4 {[%clk 00:01:21]} {[%emt 00:00:20]} 26. Bxe4 {[%clk
00:04:44]} {[%emt 00:00:12]} Red8 {[%clk 00:01:25]} {[%emt 00:00:01]} 27. Kh2
{[%clk 00:04:32]} {[%emt 00:00:17]} Bb6 {[%clk 00:00:36]} {[%emt 00:00:54]} 28.
Bc2 {[%clk 00:04:12]} {[%emt 00:00:24]} Rxd1 {[%clk 00:00:14]} {[%emt
00:00:28]} 29. Rxd1 {[%clk 00:04:15]} {[%emt 00:00:02]} Rd8 {[%clk 00:00:18]}
{[%emt 00:00:02]} 30. Rxd8+ {[%clk 00:04:13]} {[%emt 00:00:06]} Qxd8 {[%clk
00:00:21]} 31. Qe4 {[%clk 00:04:12]} {[%emt 00:00:07]} Nf5 {[%clk 00:00:23]}
{[%emt 00:00:03]} 32. Ne3 {[%clk 00:03:39]} {[%emt 00:00:38]} Bxe3 {[%clk
00:00:25]} {[%emt 00:00:04]} 33. fxe3 {[%clk 00:03:35]} {[%emt 00:00:08]} Qd2+
{[%clk 00:00:28]} {[%emt 00:00:01]} 34. Kh3 {[%clk 00:03:33]} {[%emt 00:00:07]}
Qf2 {[%clk 00:00:16]} {[%emt 00:00:17]} 35. Qg2 {[%clk 00:02:29]} {[%emt
00:01:09]} Qxg2+ {[%clk 00:00:18]} {[%emt 00:00:03]} 36. Kxg2 {[%clk 00:02:33]}
{[%emt 00:00:02]} Nxe3+ {[%clk 00:00:22]} {[%emt 00:00:01]} 37. Kf3 {[%clk
00:02:37]} Nxc2 {[%clk 00:00:26]} {[%emt 00:00:01]} 38. Ke4 {[%clk 00:02:42]}
Na3 {[%clk 00:00:15]} {[%emt 00:00:16]} 39. Kd4 {[%clk 00:02:44]} {[%emt
00:00:03]} f6 {[%clk 00:00:19]} {[%emt 00:00:01]} 40. g4 {[%clk 00:02:36]}
{[%emt 00:00:13]} Kf7 {[%clk 00:00:23]} {[%emt 00:00:02]} 41. Ke4 {[%clk
00:02:39]} {[%emt 00:00:02]} Nb5 {[%clk 00:00:25]} {[%emt 00:00:03]} 0-1

[Event "SS Manhem Chess Week 2019 Goteborg Open"]
[Site "Molnlycke kulturhus, Biblioteksgatan 2, Molnlycke, Sweden"]
[Date "2019.08.16"]
[Round "2.1"]
[White "Pham, Bich Ngoc"]
[Black "Blomqvist, Erik"]
[Result "0-1"]
[TimeControl "15 minutes + 5 seconds per move from move one (Round 1 - 4) / 90 minutes + 30 seconds per move from move one (Round 5 - 8)"]
[WhiteTitle "WIM"]
[BlackTitle "GM"]
[WhiteFideId "12401285"]
[BlackFideId "1709437"]
[WhiteElo "2176"]
[BlackElo "2507"]

1. f4 {[%clk 00:15:07]} b5 {[%clk 00:14:59]} {[%emt 00:00:12]} 2. Nf3 {[%clk
00:15:07]} {[%emt 00:00:05]} Bb7 {[%clk 00:15:02]} {[%emt 00:00:02]} 3. g3
{[%clk 00:15:02]} {[%emt 00:00:10]} e6 {[%clk 00:15:03]} {[%emt 00:00:04]} 4.
Bg2 {[%clk 00:15:06]} Nf6 {[%clk 00:15:02]} {[%emt 00:00:07]} 5. O-O {[%clk
00:15:04]} {[%emt 00:00:07]} Be7 {[%clk 00:15:04]} {[%emt 00:00:03]} 6. d3
{[%clk 00:15:07]} {[%emt 00:00:02]} d5 {[%clk 00:15:08]} {[%emt 00:00:02]} 7.
e3 {[%clk 00:14:45]} {[%emt 00:00:27]} c5 {[%clk 00:15:08]} {[%emt 00:00:04]} 8.
Qe2 {[%clk 00:14:49]} {[%emt 00:00:02]} Nc6 {[%clk 00:15:01]} {[%emt 00:00:13]}
9. Nc3 {[%clk 00:14:24]} {[%emt 00:00:30]} b4 {[%clk 00:14:56]} {[%emt
00:00:10]} 10. Nd1 {[%clk 00:14:28]} a5 {[%clk 00:14:48]} {[%emt 00:00:14]} 11.
Nf2 {[%clk 00:14:25]} {[%emt 00:00:07]} O-O {[%clk 00:14:42]} {[%emt 00:00:11]}
12. g4 {[%clk 00:14:27]} {[%emt 00:00:03]} Ne8 {[%clk 00:13:46]} {[%emt
00:01:00]} 13. c4 {[%clk 00:14:14]} {[%emt 00:00:19]} bxc3 {[%clk 00:13:31]}
{[%emt 00:00:20]} 14. bxc3 {[%clk 00:14:18]} {[%emt 00:00:01]} Nd6 {[%clk
00:13:32]} {[%emt 00:00:04]} 15. a4 {[%clk 00:13:49]} {[%emt 00:00:34]} Rb8
{[%clk 00:13:32]} {[%emt 00:00:05]} 16. Ba3 {[%clk 00:13:50]} {[%emt 00:00:05]}
c4 {[%clk 00:11:30]} {[%emt 00:02:07]} 17. d4 {[%clk 00:13:23]} {[%emt
00:00:32]} f5 {[%clk 00:10:37]} {[%emt 00:00:57]} 18. Ne5 {[%clk 00:12:09]}
{[%emt 00:01:19]} Ne4 {[%clk 00:08:26]} {[%emt 00:02:15]} 19. gxf5 {[%clk
00:09:45]} {[%emt 00:02:29]} exf5 {[%clk 00:08:24]} {[%emt 00:00:07]} 20. Nxe4
{[%clk 00:08:28]} {[%emt 00:01:23]} fxe4 {[%clk 00:08:03]} {[%emt 00:00:26]} 21.
Qg4 {[%clk 00:05:50]} {[%emt 00:02:42]} Bxa3 {[%clk 00:07:50]} {[%emt
00:00:19]} 22. Rxa3 {[%clk 00:05:39]} {[%emt 00:00:17]} Nxe5 {[%clk 00:07:41]}
{[%emt 00:00:14]} 23. fxe5 {[%clk 00:05:09]} {[%emt 00:00:35]} Rxf1+ {[%clk
00:07:28]} {[%emt 00:00:18]} 24. Bxf1 {[%clk 00:05:13]} Bc8 {[%clk 00:07:11]}
{[%emt 00:00:22]} 25. Qg3 {[%clk 00:05:16]} {[%emt 00:00:01]} Rb3 {[%clk
00:05:48]} {[%emt 00:01:29]} 26. Ra2 {[%clk 00:04:49]} {[%emt 00:00:33]} Rxc3
{[%clk 00:05:37]} {[%emt 00:00:16]} 27. Rg2 {[%clk 00:04:52]} {[%emt 00:00:02]}
Qe7 {[%clk 00:05:22]} {[%emt 00:00:19]} 28. Qe1 {[%clk 00:04:50]} {[%emt
00:00:07]} Qa3 {[%clk 00:02:59]} {[%emt 00:02:28]} 29. Qh4 {[%clk 00:04:26]}
{[%emt 00:00:29]} Qf8 {[%clk 00:02:46]} {[%emt 00:00:18]} 30. Qe1 {[%clk
00:04:25]} {[%emt 00:00:05]} Rb3 {[%clk 00:02:20]} {[%emt 00:00:32]} 31. Qxa5
{[%clk 00:04:22]} {[%emt 00:00:08]} Be6 {[%clk 00:01:58]} {[%emt 00:00:26]} 32.
Rf2 {[%clk 00:03:56]} {[%emt 00:00:32]} Qe8 {[%clk 00:02:00]} {[%emt 00:00:04]}
33. Qc7 {[%clk 00:01:52]} {[%emt 00:02:08]} Rxe3 {[%clk 00:01:50]} {[%emt
00:00:15]} 34. a5 {[%clk 00:01:54]} {[%emt 00:00:03]} Ra3 {[%clk 00:01:15]}
{[%emt 00:00:36]} 35. Rb2 {[%clk 00:01:51]} {[%emt 00:00:11]} Qg6+ {[%clk
00:00:19]} {[%emt 00:01:01]} 36. Rg2 {[%clk 00:01:45]} {[%emt 00:00:11]} Qf7
{[%clk 00:00:23]} {[%emt 00:00:02]} 37. Qd8+ {[%clk 00:01:31]} {[%emt
00:00:19]} Qf8 {[%clk 00:00:27]} {[%emt 00:00:01]} 38. Qb6 {[%clk 00:01:35]}
Qe7 {[%clk 00:00:14]} {[%emt 00:00:17]} 39. a6 {[%clk 00:01:29]} {[%emt
00:00:11]} h6 {[%clk 00:00:13]} {[%emt 00:00:06]} 40. Rb2 {[%clk 00:01:22]}
{[%emt 00:00:11]} Kh7 {[%clk 00:00:13]} {[%emt 00:00:05]} 41. Qb7 {[%clk
00:01:22]} {[%emt 00:00:05]} Qg5+ {[%clk 00:00:17]} {[%emt 00:00:01]} 42. Rg2
{[%clk 00:01:23]} {[%emt 00:00:04]} Bg4 {[%clk 00:00:14]} {[%emt 00:00:08]} 43.
Qxd5 {[%clk 00:00:46]} {[%emt 00:00:42]} Qe3+ {[%clk 00:00:18]} 44. Rf2 {[%clk
00:00:50]} {[%emt 00:00:02]} Rxa6 {[%clk 00:00:15]} {[%emt 00:00:09]} 45. Qxc4
{[%clk 00:00:34]} {[%emt 00:00:21]} Rg6 {[%clk 00:00:16]} {[%emt 00:00:03]} 46.
Bg2 {[%clk 00:00:20]} {[%emt 00:00:19]} Bh3 {[%clk 00:00:16]} {[%emt 00:00:06]}
47. Kf1 {[%clk 00:00:22]} {[%emt 00:00:03]} Rxg2 {[%clk 00:00:17]} {[%emt
00:00:04]} 48. Rxg2 {[%clk 00:00:25]} Qf3+ {[%clk 00:00:21]} {[%emt 00:00:01]}
49. Ke1 {[%clk 00:00:29]} Qxg2 {[%clk 00:00:17]} {[%emt 00:00:09]} 50. Qe2
{[%clk 00:00:31]} {[%emt 00:00:03]} Qg1+ {[%clk 00:00:19]} {[%emt 00:00:03]} 51.
Kd2 {[%clk 00:00:32]} {[%emt 00:00:04]} Qxd4+ {[%clk 00:00:23]} {[%emt
00:00:01]} 52. Kc2 {[%clk 00:00:36]} {[%emt 00:00:01]} Qxe5 {[%clk 00:00:26]}
{[%emt 00:00:02]} 0-1

[Event "SS Manhem Chess Week 2019 Goteborg Open"]
[Site "Molnlycke kulturhus, Biblioteksgatan 2, Molnlycke, Sweden"]
[Date "2019.08.16"]
[Round "2.2"]
[White "Hector, Jonny"]
[Black "Ask, Josef"]
[Result "0-1"]
[TimeControl "15 minutes + 5 seconds per move from move one (Round 1 - 4) / 90 minutes + 30 seconds per move from move one (Round 5 - 8)"]
[WhiteTitle "GM"]
[BlackTitle "FM"]
[WhiteFideId "1700090"]
[BlackFideId "1704583"]
[WhiteElo "2493"]
[BlackElo "2136"]

1. e4 {[%clk 00:15:05]} {[%emt 00:00:02]} c5 {[%clk 00:15:07]} {[%emt
00:00:05]} 2. Nf3 {[%clk 00:15:08]} {[%emt 00:00:02]} Nc6 {[%clk 00:15:09]}
{[%emt 00:00:04]} 3. Nc3 {[%clk 00:15:10]} {[%emt 00:00:02]} g6 {[%clk
00:14:55]} {[%emt 00:00:19]} 4. d4 {[%clk 00:15:10]} {[%emt 00:00:05]} cxd4
{[%clk 00:14:52]} {[%emt 00:00:08]} 5. Nxd4 {[%clk 00:15:12]} {[%emt 00:00:02]}
Bg7 {[%clk 00:14:55]} {[%emt 00:00:03]} 6. Nb3 {[%clk 00:15:13]} {[%emt
00:00:04]} d6 {[%clk 00:14:43]} {[%emt 00:00:17]} 7. Be2 {[%clk 00:15:14]}
{[%emt 00:00:04]} Nf6 {[%clk 00:14:41]} {[%emt 00:00:07]} 8. O-O {[%clk
00:15:14]} {[%emt 00:00:03]} O-O {[%clk 00:14:37]} {[%emt 00:00:10]} 9. Re1
{[%clk 00:15:16]} {[%emt 00:00:03]} a5 {[%clk 00:14:27]} {[%emt 00:00:16]} 10.
a4 {[%clk 00:15:17]} {[%emt 00:00:04]} Nb4 {[%clk 00:14:26]} {[%emt 00:00:06]}
11. Bg5 {[%clk 00:15:09]} {[%emt 00:00:12]} Be6 {[%clk 00:14:13]} {[%emt
00:00:19]} 12. Nd4 {[%clk 00:15:05]} {[%emt 00:00:08]} Bd7 {[%clk 00:14:12]}
{[%emt 00:00:07]} 13. Qd2 {[%clk 00:14:58]} {[%emt 00:00:12]} Rc8 {[%clk
00:14:03]} {[%emt 00:00:14]} 14. Bb5 {[%clk 00:14:57]} {[%emt 00:00:05]} Rc5
{[%clk 00:13:45]} {[%emt 00:00:23]} 15. Bh4 {[%clk 00:12:27]} {[%emt 00:02:36]}
Qc8 {[%clk 00:12:42]} {[%emt 00:01:09]} 16. Bxd7 {[%clk 00:12:05]} {[%emt
00:00:26]} Qxd7 {[%clk 00:12:43]} {[%emt 00:00:04]} 17. Nb3 {[%clk 00:12:05]}
{[%emt 00:00:05]} Rh5 {[%clk 00:11:41]} {[%emt 00:01:08]} 18. Bg3 {[%clk
00:12:08]} {[%emt 00:00:02]} Rc8 {[%clk 00:11:12]} {[%emt 00:00:34]} 19. Rad1
{[%clk 00:12:00]} {[%emt 00:00:12]} Qc6 {[%clk 00:10:53]} {[%emt 00:00:24]} 20.
Nd4 {[%clk 00:11:51]} {[%emt 00:00:15]} Qc4 {[%clk 00:10:51]} {[%emt 00:00:07]}
21. Ndb5 {[%clk 00:11:35]} {[%emt 00:00:21]} d5 {[%clk 00:09:33]} {[%emt
00:01:23]} 22. e5 {[%clk 00:11:03]} {[%emt 00:00:37]} Ne4 {[%clk 00:09:01]}
{[%emt 00:00:38]} 23. Nxe4 {[%clk 00:10:42]} {[%emt 00:00:25]} dxe4 {[%clk
00:08:58]} {[%emt 00:00:08]} 24. Na3 {[%clk 00:09:57]} {[%emt 00:00:51]} Qc6
{[%clk 00:08:45]} {[%emt 00:00:17]} 25. Qd4 {[%clk 00:08:36]} {[%emt 00:01:25]}
Nxc2 {[%clk 00:08:08]} {[%emt 00:00:43]} 26. Nxc2 {[%clk 00:08:36]} {[%emt
00:00:06]} Qxc2 {[%clk 00:08:12]} {[%emt 00:00:01]} 27. Rxe4 {[%clk 00:08:13]}
{[%emt 00:00:27]} Rf5 {[%clk 00:06:50]} {[%emt 00:01:27]} 28. f4 {[%clk
00:06:54]} {[%emt 00:01:24]} e6 {[%clk 00:06:32]} {[%emt 00:00:24]} 29. Rd2
{[%clk 00:05:46]} {[%emt 00:01:13]} Qc6 {[%clk 00:05:55]} {[%emt 00:00:42]} 30.
Re3 {[%clk 00:05:41]} {[%emt 00:00:10]} Bf8 {[%clk 00:05:41]} {[%emt 00:00:19]}
31. Rc3 {[%clk 00:03:54]} {[%emt 00:01:51]} Bc5 {[%clk 00:05:10]} {[%emt
00:00:36]} 32. Rxc5 {[%clk 00:03:56]} {[%emt 00:00:02]} Qxc5 {[%clk 00:05:14]}
{[%emt 00:00:01]} 33. Qxc5 {[%clk 00:03:50]} {[%emt 00:00:11]} Rxc5 {[%clk
00:05:18]} {[%emt 00:00:01]} 34. h4 {[%clk 00:03:39]} {[%emt 00:00:15]} Rc4
{[%clk 00:04:49]} {[%emt 00:00:35]} 35. Kf2 {[%clk 00:01:38]} {[%emt 00:02:06]}
Rxa4 {[%clk 00:04:27]} {[%emt 00:00:27]} 36. Ke3 {[%clk 00:01:40]} {[%emt
00:00:02]} Rb4 {[%clk 00:04:25]} {[%emt 00:00:07]} 37. Bh2 {[%clk 00:01:40]}
{[%emt 00:00:04]} h5 {[%clk 00:04:21]} {[%emt 00:00:10]} 38. g3 {[%clk
00:01:40]} {[%emt 00:00:05]} f6 {[%clk 00:04:10]} {[%emt 00:00:15]} 39. Rd8+
{[%clk 00:01:20]} {[%emt 00:00:25]} Kf7 {[%clk 00:04:10]} {[%emt 00:00:06]} 40.
exf6 {[%clk 00:01:12]} {[%emt 00:00:11]} Rd5 {[%clk 00:04:02]} {[%emt
00:00:15]} 41. Rc8 {[%clk 00:00:25]} {[%emt 00:00:51]} Rb3+ {[%clk 00:03:25]}
{[%emt 00:00:42]} 42. Ke4 {[%clk 00:00:27]} {[%emt 00:00:03]} Rd1 {[%clk
00:03:15]} {[%emt 00:00:15]} 43. Rc2 {[%clk 00:00:18]} {[%emt 00:00:14]} Kxf6
{[%clk 00:02:44]} {[%emt 00:00:36]} 44. Rg2 {[%clk 00:00:20]} {[%emt 00:00:03]}
Rb1 {[%clk 00:02:30]} {[%emt 00:00:19]} 45. Bg1 {[%clk 00:00:24]} Rb4+ {[%clk
00:02:22]} {[%emt 00:00:13]} 46. Bd4+ {[%clk 00:00:28]} {[%emt 00:00:01]} Kf7
{[%clk 00:02:22]} {[%emt 00:00:05]} 47. Rc2 {[%clk 00:00:31]} {[%emt 00:00:01]}
Rd1 {[%clk 00:02:14]} {[%emt 00:00:13]} 48. Rc7+ {[%clk 00:00:35]} {[%emt
00:00:01]} Ke8 {[%clk 00:02:19]} {[%emt 00:00:01]} 49. Ke5 {[%clk 00:00:35]}
{[%emt 00:00:05]} Rbxd4 {[%clk 00:02:15]} {[%emt 00:00:09]} 50. Rxb7 {[%clk
00:00:37]} {[%emt 00:00:03]} Rd6 {[%clk 00:02:07]} {[%emt 00:00:13]} 51. Kf6
{[%clk 00:00:37]} {[%emt 00:00:05]} R1d3 {[%clk 00:01:50]} {[%emt 00:00:22]} 52.
Ke5 {[%clk 00:00:21]} {[%emt 00:00:21]} R3d5+ {[%clk 00:01:48]} {[%emt
00:00:07]} 53. Kf6 {[%clk 00:00:22]} {[%emt 00:00:04]} e5+ {[%clk 00:01:46]}
{[%emt 00:00:08]} 54. Kg7 {[%clk 00:00:26]} exf4 {[%clk 00:01:41]} {[%emt
00:00:11]} 55. gxf4 {[%clk 00:00:27]} {[%emt 00:00:03]} Rf5 {[%clk 00:01:30]}
{[%emt 00:00:17]} 0-1